bitfinex/quotes_SOLUSD_20250112
["timestamp","ask_amount","ask_price","bid_price","bid_amount"]
[1736711826681,9.03342086,189.19,189.16,0.12549]
[1736711827054,9.03342086,189.2,189.16,0.12549]
[1736711830285,9.03342086,189.21,189.15,0.12549]
[1736711831381,9.03342086,189.2,189.15,0.12549]
[1736711832475,2.1117314,189.24,189.15,0.12549]
[1736711832679,9.03342086,189.21,189.15,0.12549]
[1736711834488,9.03342086,189.2,189.15,0.12549]
[1736711834673,9.03342086,189.16,189.13,134.4]
[1736711838977,9.03342086,189.16,189.14,0.12549]
[1736711839159,9.03342086,189.17,189.14,0.12549]
[1736711840275,9.03342086,189.17,189.12,23.902374]
[1736711840584,9.03342086,189.16,189.12,23.902374]
[1736711841283,9.03342086,189.13,189.09,135.9113]
[1736711841775,9.03342086,189.13,189.1,0.12549]
[1736711845168,9.03342086,189.11,189.07,62.29577303]
[1736711845482,9.03342086,189.1,189.07,62.29577303]
[1736711845681,9.03342086,189.1,189.08,0.12549]
[1736711848580,9.03342086,189.1,189.07,62.29577303]
[1736711849291,9.03342086,189.1,189.06,23.902374]
[1736711850089,9.03342086,189.11,189.05,23.902374]
[1736711851281,9.03342086,189.1,189.05,23.902374]
[1736711851893,9.03342086,189.09,189.05,23.902374]
[1736711853394,9.03342086,189.08,189.04,23.902374]
[1736711855393,22.4025314,189.13,189.04,23.902374]
[1736711855589,9.03342086,189.09,189.04,23.902374]
[1736711855769,9.03342086,189.11,189.04,167.33579486]
[1736711857300,9.03342086,189.09,189.04,23.902374]
[1736711859380,9.03342086,189.07,189.04,23.902374]
[1736711859878,9.03342086,189.08,189.04,23.902374]
[1736711860084,9.03342086,189.08,189.04,0.12549]
[1736711861001,9.03342086,189.05,188.99,142.4652]
[1736711861179,9.03342086,189.05,188.99,151.49862086]
[1736711861381,9.03342086,189.06,189.0,32.93579486]
[1736711862608,9.03342086,189.07,189.0,32.93579486]
[1736711863812,9.03342086,189.07,189.02,0.12549]
[1736711864202,2.2381214,189.12,189.02,23.902374]
[1736711864405,2.1126314,189.12,189.04,23.902374]
[1736711864607,9.03342086,189.1,189.04,32.93579486]
[1736711867703,9.03342086,189.11,189.04,32.93579486]
[1736711868493,9.03342086,189.12,189.06,0.12549]
[1736711868702,9.03342086,189.12,189.06,9.15891086]
[1736711869211,9.03342086,189.13,189.06,9.15891086]
[1736711870217,9.03342086,189.12,189.06,9.15891086]
[1736711870417,9.03342086,189.12,189.06,23.902374]
[1736711872513,9.03342086,189.1,189.05,23.902374]
[1736711873284,9.03342086,189.1,189.04,23.902374]
[1736711878115,9.03342086,189.09,189.04,23.902374]
[1736711879098,9.03342086,189.1,189.04,23.902374]
[1736711879298,9.03342086,189.1,189.04,158.302374]
[1736711885210,9.03342086,189.1,189.04,220.59814703]
[1736711885617,22.1124314,189.15,189.04,220.59814703]
[1736711885813,9.03342086,189.1,189.04,220.59814703]
[1736711886722,9.03342086,189.11,189.04,220.59814703]
[1736711887125,2.3382314,189.17,189.06,229.63156789]
[1736711887421,9.03342086,189.15,189.08,23.902374]
[1736711887629,9.03342086,189.13,189.08,0.12549]
[1736711889395,9.03342086,189.12,189.1,0.12549]
[1736711890120,2.1122314,189.18,189.08,134.4]
[1736711890121,9.03342086,189.11,189.08,134.4]
[1736711891938,9.03342086,189.12,189.08,134.4]
[1736711892744,9.03342086,189.11,189.08,134.4]
[1736711893944,9.03342086,189.1,189.08,134.4]
[1736711894245,9.03342086,189.1,189.07,23.902374]
[1736711903133,9.03342086,189.09,189.07,23.902374]
[1736711903820,9.03342086,189.1,189.07,23.902374]
[1736711910723,22.1124314,189.15,189.07,23.902374]
[1736711910923,9.03342086,189.11,189.07,23.902374]
[1736711911535,9.03342086,189.1,189.07,23.902374]
[1736711914358,9.03342086,189.09,189.06,62.29577303]
[1736711914560,9.03342086,189.07,189.01,62.29577303]
[1736711914864,9.03342086,189.02,188.97,196.69577303]
[1736711915065,9.03342086,189.02,188.98,0.12549]
[1736711915539,9.03342086,189.0,188.98,0.12549]
[1736711917336,9.03342086,189.01,188.98,0.12549]
[1736711918347,9.03342086,189.02,188.98,0.12549]
[1736711918930,9.03342086,189.01,188.98,0.12549]
[1736711920948,9.03342086,189.02,188.98,0.12549]
[1736711921325,9.03342086,189.03,188.98,0.12549]
[1736711923154,3.6933314,189.07,188.98,0.12549]
[1736711923155,9.03342086,189.02,188.98,0.12549]
[1736711923332,9.03342086,189.03,188.98,0.12549]
[1736711923753,9.03342086,189.04,188.98,23.902374]
[1736711924128,9.03342086,189.05,188.98,32.93579486]
[1736711927057,9.03342086,189.04,188.98,23.902374]
[1736711927367,9.03342086,189.03,188.98,23.902374]
[1736711927927,9.03342086,189.04,188.98,23.902374]
[1736711932659,9.03342086,189.05,188.98,32.93579486]
[1736711933144,9.03342086,189.05,188.98,229.63156789]
[1736711935957,9.03342086,189.05,189.01,0.12549]
[1736711939354,9.03342086,189.05,188.99,23.902374]
[1736711940657,9.03342086,189.02,188.98,196.69577303]
[1736711940861,9.03342086,189.02,188.96,8.0074]
[1736711941057,9.03342086,189.02,188.97,23.902374]
[1736711941247,9.03342086,189.03,188.97,32.93579486]
[1736711941743,2.1129314,189.08,189.0,0.12549]
[1736711941946,9.03342086,189.06,189.0,0.12549]
[1736711942875,9.03342086,189.05,188.98,32.81030486]
[1736711943365,9.03342086,189.05,188.99,0.12549]
[1736711943560,9.03342086,189.06,189.02,0.12549]
[1736711943769,3.05679,189.11,189.02,0.12549]
[1736711943770,9.03342086,189.07,189.02,0.12549]
[1736711944347,0.7907314,189.09,189.02,0.12549]
[1736711944558,9.03342086,189.08,189.02,0.12549]
[1736711944774,9.03342086,189.07,189.02,0.12549]
[1736711947071,9.03342086,189.08,189.02,23.902374]
[1736711948074,9.03342086,189.07,189.02,23.902374]
[1736711948274,9.03342086,189.06,189.02,23.902374]
[1736711948850,9.03342086,189.07,189.02,23.902374]
[1736711954080,9.03342086,189.07,189.01,23.902374]
[1736711955078,9.03342086,189.06,189.01,23.902374]
[1736711957776,9.03342086,189.06,189.01,0.12549]
[1736711959777,0.7907314,189.09,189.01,23.902374]
[1736711959978,9.03342086,189.07,189.01,23.902374]
[1736711961286,9.03342086,189.06,189.01,23.902374]
[1736711961472,9.03342086,189.07,189.01,23.902374]
[1736711962071,0.7907314,189.09,189.01,23.902374]
[1736711962272,9.03342086,189.07,189.01,23.902374]
[1736711975090,9.03342086,189.07,189.01,158.302374]
[1736711979896,9.03342086,189.08,189.01,23.902374]
[1736711986602,9.03342086,189.07,189.01,23.902374]
[1736711991725,0.7907314,189.11,189.02,10.58412086]
[1736711991893,9.03342086,189.11,189.04,9.15891086]
[1736711992333,9.03342086,189.11,189.05,23.776884]
[1736711992528,9.03342086,189.11,189.05,32.81030486]
[1736711992813,9.03342086,189.13,189.07,23.776884]
[1736711994396,9.03342086,189.12,189.07,0.12549]
[1736711995308,9.03342086,189.11,189.07,0.12549]
[1736712002622,0.7907314,189.15,189.07,9.15891086]
[1736712002808,9.03342086,189.17,189.11,0.12549]
[1736712003010,9.03342086,189.17,189.11,23.902374]
[1736712003325,9.03342086,189.14,189.1,134.4]
[1736712003498,9.03342086,189.11,189.08,198.37196303]
[1736712003700,9.03342086,189.11,189.08,198.24647303]
[1736712004499,9.03342086,189.12,189.08,63.84647303]
[1736712004700,9.03342086,189.11,189.08,63.84647303]
[1736712004924,9.03342086,189.09,189.04,196.69577303]
[1736712005118,9.03342086,189.08,189.04,62.29577303]
[1736712005425,9.03342086,189.09,189.05,23.902374]
[1736712006329,9.03342086,189.12,189.05,167.33579486]
[1736712007619,2.1122314,189.18,189.1,0.12549]
[1736712007821,9.03342086,189.17,189.11,23.776884]
[1736712009331,9.03342086,189.17,189.12,0.12549]
[1736712009512,9.03342086,189.19,189.14,0.12549]
[1736712009834,9.03342086,189.18,189.14,0.12549]
[1736712010914,9.03342086,189.16,189.12,134.4]
[1736712011113,9.03342086,189.14,189.1,62.29577303]
[1736712011318,9.03342086,189.14,189.11,23.902374]
[1736712013328,9.03342086,189.14,189.1,62.29577303]
[1736712013534,9.03342086,189.13,189.1,62.29577303]
[1736712013731,9.03342086,189.14,189.1,62.29577303]
[1736712014913,2.1120314,189.2,189.11,23.902374]
[1736712015128,0.7907314,189.21,189.11,32.93579486]
[1736712015333,9.03342086,189.19,189.12,9.03342086]
[1736712015637,9.03342086,189.19,189.13,23.902374]
[1736712015940,9.03342086,189.2,189.14,23.776884]
[1736712016132,9.03342086,189.21,189.15,0.12549]
[1736712016337,9.82415226,189.22,189.15,9.15891086]
[1736712016534,9.03342086,189.22,189.16,23.776884]
[1736712016736,6.40858761,189.23,189.19,9.03342086]
[1736712016931,6.40858761,189.23,189.2,32.93579486]
[1736712017249,14.68617606,189.26,189.2,32.93579486]
[1736712017449,6.40858761,189.26,189.2,32.93579486]
[1736712018217,6.40858761,189.26,189.21,9.03342086]
[1736712018924,9.03342086,189.27,189.21,9.03342086]
[1736712019543,9.03342086,189.28,189.22,23.902374]
[1736712019856,9.03342086,189.29,189.22,167.33579486]
[1736712020159,20.0,189.3,189.22,167.33579486]
[1736712020319,29.03342086,189.3,189.24,23.902374]
[1736712021451,9.03342086,189.29,189.24,0.12549]
[1736712022462,2.1112314,189.32,189.24,9.15891086]
[1736712022762,9.03342086,189.31,189.25,9.03342086]
[1736712023629,9.03342086,189.31,189.24,9.15891086]
[1736712023860,9.03342086,189.3,189.24,0.12549]
[1736712024040,9.03342086,189.3,189.24,9.15891086]
[1736712024761,2.1110314,189.35,189.27,0.12549]
[1736712025043,9.03342086,189.33,189.27,0.12549]
[1736712025249,9.03342086,189.32,189.27,0.12549]
[1736712027128,9.03342086,189.32,189.24,1.5794]
[1736712027129,9.03342086,189.29,189.24,1.5794]
[1736712027333,9.03342086,189.26,189.22,62.29577303]
[1736712027841,8.53342086,189.26,189.22,62.29577303]
[1736712028242,9.03342086,189.25,189.19,8.2084]
[1736712028552,9.03342086,189.25,189.2,23.902374]
[1736712028754,0.7907314,189.27,189.2,23.902374]
[1736712028964,9.03342086,189.25,189.2,23.902374]
[1736712029976,9.03342086,189.26,189.2,23.902374]
[1736712030255,9.03342086,189.26,189.2,32.93579486]
[1736712030757,22.1113314,189.31,189.22,9.15891086]
[1736712030941,9.03342086,189.29,189.22,9.15891086]
[1736712031139,9.03342086,189.29,189.21,23.776884]
[1736712031140,1.3203,189.34,189.25,9.15891086]
[1736712031358,9.03342086,189.33,189.27,0.12549]
[1736712032232,9.03342086,189.33,189.27,134.52549]
[1736712032548,9.03342086,189.34,189.28,23.776884]
[1736712032946,3.7077314,189.37,189.28,23.776884]
[1736712032947,9.03342086,189.35,189.28,32.81030486]
[1736712034774,9.03342086,189.34,189.28,32.81030486]
[1736712035869,2.1108314,189.37,189.3,23.776884]
[1736712036084,9.03342086,189.36,189.3,9.03342086]
[1736712036281,10.35352086,189.37,189.3,9.03342086]
[1736712037386,9.03342086,189.37,189.32,23.776884]
[1736712038354,9.03342086,189.37,189.31,0.12549]
[1736712039071,9.03342086,189.36,189.31,0.12549]
[1736712044201,9.03342086,189.35,189.3,158.176884]
[1736712044378,9.03342086,189.34,189.3,158.176884]
[1736712045271,9.03342086,189.33,189.3,23.776884]
[1736712046392,9.03342086,189.31,189.29,62.29577303]
[1736712046992,9.03342086,189.3,189.29,62.29577303]
[1736712047402,9.03342086,189.3,189.27,134.4]
[1736712047768,2.1109314,189.36,189.28,23.902374]
[1736712047967,9.03342086,189.33,189.28,23.902374]
[1736712049507,21.3202,189.36,189.28,23.902374]
[1736712049508,9.03342086,189.34,189.28,32.93579486]
[1736712049803,9.03342086,189.35,189.28,32.93579486]
[1736712049974,9.03342086,189.35,189.28,23.902374]
[1736712050274,9.03342086,189.35,189.28,32.93579486]
[1736712051273,9.03342086,189.35,189.28,23.902374]
[1736712052499,9.03342086,189.34,189.28,23.902374]
[1736712055285,0.12549,189.39,189.28,167.33579486]
[1736712055286,9.03342086,189.35,189.28,167.33579486]
[1736712055780,9.03342086,189.36,189.3,23.902374]
[1736712057401,2.1107314,189.39,189.3,32.93579486]
[1736712057402,9.03342086,189.37,189.3,32.93579486]
[1736712058505,9.03342086,189.38,189.32,23.902374]
[1736712058698,9.03342086,189.36,189.32,23.902374]
[1736712059288,9.03342086,189.34,189.29,134.4]
[1736712060096,9.03342086,189.34,189.3,23.902374]
[1736712060295,9.03342086,189.33,189.3,86.19814703]
[1736712060503,9.03342086,189.33,189.3,62.29577303]
[1736712063221,9.03342086,189.34,189.3,62.29577303]
[1736712063399,9.03342086,189.35,189.3,62.29577303]
[1736712064019,1.3202,189.37,189.3,62.29577303]
[1736712064314,9.03342086,189.35,189.3,62.29577303]
[1736712068813,0.9162214,189.4,189.31,32.93579486]
[1736712069117,9.03342086,189.39,189.33,23.902374]
[1736712070914,9.03342086,189.36,189.31,23.776884]
[1736712071124,9.03342086,189.35,189.31,23.776884]
[1736712071912,9.03342086,189.35,189.3,62.29577303]
[1736712072120,9.03342086,189.34,189.3,62.29577303]
[1736712072288,9.03342086,189.33,189.3,62.29577303]
[1736712074133,9.03342086,189.31,189.3,62.29577303]
[1736712077891,9.03342086,189.33,189.3,62.29577303]
[1736712081621,9.03342086,189.34,189.3,62.29577303]
[1736712081827,9.03342086,189.37,189.31,23.902374]
[1736712082018,9.03342086,189.38,189.31,229.63156789]
[1736712083119,9.03342086,189.37,189.31,220.59814703]
[1736712083321,9.03342086,189.36,189.31,220.59814703]
[1736712087243,9.03342086,189.37,189.31,220.59814703]
[1736712093247,8.53342086,189.37,189.31,252.38814703]
[1736712093743,9.03342086,189.34,189.31,86.19814703]
[1736712094322,9.03342086,189.34,189.31,62.42126303]
[1736712094640,9.03342086,189.32,189.31,62.29577303]
[1736712097544,9.03342086,189.35,189.31,62.29577303]
[1736712097732,9.03342086,189.35,189.32,23.902374]
[1736712097934,9.03342086,189.36,189.32,86.19814703]
[1736712098642,9.03342086,189.34,189.32,62.29577303]
[1736712098949,9.03342086,189.33,189.32,62.29577303]
[1736712099748,9.03342086,189.34,189.32,62.29577303]
[1736712100734,1.3202,189.37,189.32,62.29577303]
[1736712101042,9.03342086,189.33,189.32,62.29577303]
[1736712104746,9.03342086,189.34,189.32,62.29577303]
[1736712105055,9.03342086,189.35,189.32,62.29577303]
[1736712108756,9.03342086,189.36,189.32,62.29577303]
[1736712109140,3.7361314,189.4,189.32,62.29577303]
[1736712109347,9.03342086,189.35,189.32,62.29577303]
[1736712110357,9.03342086,189.36,189.32,62.29577303]
[1736712111256,3.7361314,189.4,189.32,62.29577303]
[1736712111257,9.03342086,189.35,189.32,62.29577303]
[1736712112038,9.03342086,189.34,189.32,62.29577303]
[1736712117068,8.90800985,189.34,189.32,62.29577303]
[1736712118266,22.1108314,189.38,189.32,62.29577303]
[1736712118455,9.03342086,189.35,189.32,62.29577303]
[1736712119953,9.03342086,189.33,189.32,62.29577303]
[1736712120152,9.03342086,189.34,189.32,62.29577303]
[1736712120569,9.03342086,189.35,189.32,62.29577303]
[1736712121276,2.4162314,189.4,189.33,23.902374]
[1736712121480,9.03342086,189.38,189.33,23.902374]
[1736712121655,9.03342086,189.37,189.33,23.902374]
[1736712122475,9.03342086,189.36,189.33,23.902374]
[1736712124375,9.03342086,189.35,189.32,62.29577303]
[1736712124573,9.03342086,189.33,189.28,62.29577303]
[1736712124981,9.03342086,189.34,189.29,23.902374]
[1736712129575,9.03342086,189.35,189.29,23.902374]
[1736712129981,9.03342086,189.34,189.29,23.902374]
[1736712136565,9.03342086,189.33,189.29,23.902374]
[1736712138303,9.03342086,189.34,189.29,23.902374]
[1736712140491,2.1107314,189.39,189.29,220.59814703]
[1736712140793,8.310956,189.42,189.35,0.12549]
[1736712140976,8.310956,189.42,189.36,32.93579486]
[1736712141168,8.310956,189.42,189.37,9.03342086]
[1736712141364,15.44370066,189.43,189.37,9.03342086]
[1736712141564,15.44370066,189.43,189.38,32.93579486]
[1736712141565,6.4102798,189.43,189.38,32.93579486]
[1736712141769,6.4102798,189.43,189.4,23.902374]
[1736712141992,6.4102798,189.43,189.4,0.12549]
[1736712142579,15.44370066,189.43,189.4,0.12549]
[1736712142776,15.44370066,189.43,189.39,23.776884]
[1736712143109,9.03342086,189.41,189.36,62.29577303]
[1736712143399,9.03342086,189.41,189.37,23.902374]
[1736712144674,9.03342086,189.4,189.37,23.902374]
[1736712144972,9.03342086,189.38,189.33,1.6035]
[1736712145185,9.03342086,189.37,189.33,1.6035]
[1736712145897,9.03342086,189.37,189.34,23.902374]
[1736712146798,9.03342086,189.36,189.34,23.902374]
[1736712147604,9.03342086,189.35,189.32,62.29577303]
[1736712147800,9.03342086,189.35,189.33,23.902374]
[1736712148578,9.03342086,189.34,189.32,62.29577303]
[1736712148801,9.03342086,189.33,189.32,62.29577303]
[1736712149802,9.03342086,189.33,189.32,86.19814703]
[1736712151379,9.03342086,189.33,189.31,134.4]
[1736712151910,9.03342086,189.33,189.29,23.902374]
[1736712154400,9.03342086,189.34,189.29,23.902374]
[1736712154582,9.03342086,189.36,189.29,32.93579486]
[1736712157710,9.03342086,189.36,189.29,229.63156789]
[1736712161827,9.03342086,189.36,189.3,23.902374]
[1736712162634,9.03342086,189.36,189.3,32.93579486]
[1736712162825,0.7907314,189.42,189.32,0.12549]
[1736712162826,9.03342086,189.37,189.32,0.12549]
[1736712163413,9.03342086,189.36,189.31,0.12549]
[1736712163824,9.03342086,189.36,189.32,23.776884]
[1736712164631,9.03342086,189.38,189.32,23.776884]
[1736712165504,2.1105314,189.42,189.34,23.776884]
[1736712165709,2.1105314,189.42,189.36,0.12549]
[1736712165710,9.03342086,189.4,189.36,0.12549]
[1736712166231,9.03342086,189.39,189.36,0.12549]
[1736712168526,9.03342086,189.4,189.36,0.12549]
[1736712170827,9.03342086,189.41,189.36,0.12549]
[1736712173631,9.03342086,189.4,189.36,0.12549]
[1736712178222,9.03342086,189.41,189.35,0.12549]
[1736712178930,9.03342086,189.4,189.35,0.12549]
[1736712180009,9.03342086,189.39,189.35,0.12549]
[1736712180213,9.03342086,189.38,189.35,0.12549]
[1736712181614,9.03342086,189.39,189.35,0.12549]
[1736712183052,9.03342086,189.4,189.35,0.12549]
[1736712183254,9.03342086,189.41,189.35,0.12549]
[1736712184142,9.03342086,189.4,189.35,0.12549]
[1736712185554,9.03342086,189.41,189.36,23.776884]
[1736712186346,2.3867314,189.47,189.39,0.12549]
[1736712186347,9.03342086,189.44,189.39,0.12549]
[1736712187151,9.03342086,189.46,189.41,0.12549]
[1736712189152,9.03342086,189.46,189.4,0.12549]
[1736712189472,9.03342086,189.44,189.4,0.12549]
[1736712190577,9.03342086,189.43,189.4,20.0]
[1736712190864,9.03342086,189.42,189.4,20.0]
[1736712193473,9.03342086,189.43,189.4,20.0]
[1736712194174,1.3193,189.49,189.41,0.12549]
[1736712194480,9.03342086,189.44,189.41,0.12549]
[1736712194652,9.03342086,189.45,189.41,0.12549]
[1736712195073,9.03342086,189.46,189.41,23.902374]
[1736712195241,9.03342086,189.47,189.41,23.902374]
[1736712196455,9.03342086,189.45,189.41,0.12549]
[1736712197241,9.03342086,189.43,189.41,23.902374]
[1736712199567,1.3193,189.5,189.41,23.902374]
[1736712199865,9.03342086,189.44,189.41,23.902374]
[1736712202988,9.03342086,189.42,189.4,20.0]
[1736712203875,9.03342086,189.41,189.38,23.902374]
[1736712209081,9.03342086,189.42,189.38,23.902374]
[1736712209288,9.03342086,189.44,189.38,53.902374]
[1736712209583,9.03342086,189.44,189.38,62.93579486]
[1736712209887,9.03342086,189.44,189.38,53.902374]
[1736712210084,9.03342086,189.43,189.38,53.902374]
[1736712210951,9.03342086,189.44,189.38,53.902374]
[1736712212658,9.03342086,189.44,189.39,23.902374]
[1736712213383,9.03342086,189.45,189.39,23.902374]
[1736712215086,9.03342086,189.46,189.41,0.12549]
[1736712215386,9.03342086,189.47,189.41,0.12549]
[1736712219677,1.3192,189.51,189.43,9.15891086]
[1736712219889,9.03342086,189.53,189.47,0.12549]
[1736712221162,9.03342086,189.52,189.47,0.12549]
[1736712222482,9.03342086,189.52,189.49,0.12549]
[1736712222692,9.03342086,189.52,189.47,23.902374]
[1736712223166,9.03342086,189.53,189.47,9.15891086]
[1736712223971,9.03342086,189.52,189.47,0.12549]
[1736712225670,9.03342086,189.52,189.47,0.91683508]
[1736712226470,1.3187,189.57,189.47,0.91683508]
[1736712226669,9.03342086,189.52,189.47,0.91683508]
[1736712227081,9.03342086,189.53,189.47,0.91683508]
[1736712228702,9.03342086,189.53,189.48,23.776884]
[1736712231691,9.03342086,189.52,189.48,23.776884]
[1736712232595,9.03342086,189.52,189.48,23.902374]
[1736712232999,1.3187,189.57,189.48,23.902374]
[1736712233205,9.03342086,189.52,189.48,23.902374]
[1736712235627,1.3187,189.57,189.48,23.902374]
[1736712235829,9.03342086,189.52,189.48,23.902374]
[1736712236407,9.03342086,189.53,189.48,23.902374]
[1736712237096,9.03342086,189.52,189.48,23.902374]
[1736712240814,1.3187,189.57,189.51,0.12549]
[1736712240815,9.03342086,189.54,189.51,0.12549]
[1736712240992,9.03342086,189.53,189.51,0.12549]
[1736712241317,9.03342086,189.54,189.51,0.12549]
[1736712243811,9.03342086,189.54,189.49,23.902374]
[1736712244508,1.5401,189.58,189.51,23.902374]
[1736712244812,9.03342086,189.56,189.51,23.902374]
[1736712245188,3.04220781,189.63,189.51,23.902374]
[1736712245485,9.03342086,189.57,189.53,23.902374]
[1736712246418,8.53342086,189.57,189.53,23.902374]
[1736712249210,4.36050781,189.63,189.53,23.902374]
[1736712249417,9.03342086,189.6,189.53,32.93579486]
[1736712250097,9.03342086,189.61,189.55,23.902374]
[1736712251114,9.03342086,189.61,189.57,23.902374]
[1736712251419,9.03342086,189.62,189.57,23.902374]
[1736712251806,9.03342086,189.62,189.57,24.69327616]
[1736712252008,0.68867641,189.63,189.59,0.25098]
[1736712252198,0.68867641,189.63,189.6,0.12549]
[1736712253699,0.68867641,189.63,189.61,23.902374]
[1736712254932,0.18867641,189.63,189.61,23.902374]
[1736712255231,0.18867641,189.63,189.61,53.902374]
[1736712263040,8.72209727,189.66,189.61,53.902374]
[1736712273449,8.72209727,189.66,189.62,31.74]
[1736712273744,8.72209727,189.66,189.64,0.12549]
[1736712283840,8.72209727,189.66,189.62,23.902374]
[1736712285365,9.03342086,189.65,189.62,23.902374]
[1736712286770,9.03342086,189.66,189.62,23.902374]
[1736712291746,2.1082314,189.75,189.64,23.902374]
[1736712291945,9.03342086,189.71,189.66,0.12549]
[1736712292145,9.03342086,189.71,189.66,23.902374]
[1736712293866,9.03342086,189.71,189.67,0.12549]
[1736712294749,9.03342086,189.72,189.67,0.12549]
[1736712295149,1.5049,189.75,189.67,0.12549]
[1736712295358,9.03342086,189.73,189.67,0.12549]
[1736712296480,1.3173,189.78,189.69,23.902374]
[1736712296660,9.03342086,189.73,189.69,23.902374]
[1736712296846,1.3173,189.78,189.69,0.12549]
[1736712296847,9.03342086,189.71,189.69,0.12549]
[1736712297973,9.03342086,189.71,189.67,23.902374]
[1736712298176,9.03342086,189.72,189.67,23.902374]
[1736712298941,9.03342086,189.72,189.67,23.858895]
[1736712302051,2.1080314,189.78,189.68,30.25098]
[1736712302350,2.1080314,189.78,189.69,23.902374]
[1736712302351,9.03342086,189.74,189.69,23.902374]
[1736712303275,9.03342086,189.73,189.69,23.902374]
[1736712303465,2.1080314,189.78,189.69,23.902374]
[1736712303779,9.03342086,189.73,189.69,23.902374]
[1736712303976,7.9192,189.79,189.71,23.902374]
[1736712304375,9.03342086,189.76,189.71,23.902374]
[1736712305050,1.5049,189.79,189.71,23.902374]
[1736712305250,7.9192,189.83,189.74,23.776884]
[1736712305485,9.03342086,189.79,189.74,23.776884]
[1736712305782,8.7099314,189.88,189.77,71.14989086]
[1736712305973,9.03342086,189.83,189.79,0.12549]
[1736712307286,9.03342086,189.8,189.73,33.2538]
[1736712307592,9.03342086,189.78,189.74,24.153354]
[1736712308366,9.03342086,189.78,189.74,23.902374]
[1736712309487,9.03342086,189.77,189.74,0.12549]
[1736712309693,9.03342086,189.76,189.72,30.12549]
[1736712310801,1.3169,189.83,189.73,23.902374]
[1736712310985,9.03342086,189.77,189.73,23.902374]
[1736712311366,9.03342086,189.74,189.68,31.5138]
[1736712311672,1.5186,189.8,189.72,0.12549]
[1736712311872,9.03342086,189.77,189.72,23.902374]
[1736712312291,9.03342086,189.76,189.72,23.902374]
[1736712312471,9.03342086,189.77,189.72,23.902374]
[1736712313881,9.03342086,189.73,189.7,31.74]
[1736712314210,9.03342086,189.72,189.71,23.902374]
[1736712314763,9.03342086,189.72,189.71,0.12549]
[1736712314979,9.03342086,189.72,189.69,0.37647]
[1736712315178,9.03342086,189.72,189.7,23.776884]
[1736712316573,9.03342086,189.73,189.7,23.776884]
[1736712317210,9.03342086,189.74,189.7,23.776884]
[1736712318074,9.03342086,189.71,189.68,31.74]
[1736712318275,9.03342086,189.71,189.69,23.902374]
[1736712321175,9.03342086,189.72,189.69,23.902374]
[1736712321697,9.03342086,189.75,189.69,23.902374]
[1736712322499,9.03342086,189.75,189.69,62.93579486]
[1736712323371,9.03342086,189.75,189.69,53.902374]
[1736712323899,9.03342086,189.75,189.72,0.12549]
[1736712324122,9.03342086,189.74,189.72,0.12549]
[1736712332103,0.7907314,189.83,189.72,0.12549]
[1736712332104,2.1077314,189.83,189.73,32.81030486]
[1736712332403,9.03342086,189.79,189.73,23.776884]
[1736712332610,9.03342086,189.78,189.73,23.776884]
[1736712333903,9.03342086,189.79,189.74,0.12549]
[1736712334482,9.03342086,189.79,189.76,0.12549]
[1736712335378,9.03342086,189.79,189.74,23.902374]
[1736712335920,9.03342086,189.8,189.74,23.902374]
[1736712336477,1.317,189.83,189.74,23.902374]
[1736712336697,9.03342086,189.8,189.74,23.902374]
[1736712337724,7.7991,189.85,189.76,23.902374]
[1736712337938,9.03342086,189.82,189.76,32.93579486]
[1736712338499,9.03342086,189.83,189.78,23.776884]
[1736712338733,9.03342086,189.83,189.79,0.12549]
[1736712339637,9.03342086,189.82,189.77,23.902374]
[1736712341433,9.03342086,189.82,189.77,0.12549]
[1736712341599,9.03342086,189.82,189.77,23.902374]
[1736712342434,9.03342086,189.82,189.77,54.153354]
[1736712344733,9.03342086,189.83,189.8,0.12549]
[1736712345230,0.7907314,189.88,189.8,0.12549]
[1736712345533,9.03342086,189.83,189.8,0.12549]
[1736712346907,0.7907314,189.88,189.8,0.12549]
[1736712347114,1.6414,189.9,189.81,9.03342086]
[1736712347417,0.7907314,189.93,189.85,0.12549]
[1736712347626,7.4125314,189.94,189.85,0.12549]
[1736712347812,9.03342086,189.89,189.85,0.12549]
[1736712348907,9.03342086,189.87,189.85,0.12549]
[1736712349224,9.03342086,189.87,189.82,0.25098]
[1736712350240,9.03342086,189.87,189.83,0.12549]
[1736712355736,9.03342086,189.88,189.84,23.776884]
[1736712356545,1.3162,189.93,189.84,23.776884]
[1736712356744,9.03342086,189.9,189.84,23.776884]
[1736712357539,6.6218,189.94,189.85,0.25098]